Cogmind - Beta 13 @@@ ROGUE MODE // 2024.07.10 @ 20:18:27 Player: lexi^-^ Result: Destroyed by S-10 Pest with Light Assault Rifle Performance ------------- Evolutions (0) 0 Regions Visited (1) 200 Robots Destroyed (13) 65 Value Destroyed (209) 209 Prototype IDs (0) 0 Alien Tech Used (0) 0 Bonus (0) 0 TOTAL SCORE: 474 Bonus ------- None Cogmind --------- Core Integrity 0/250 Matter 300/300 Energy 96/100 System Corruption 0% Temperature Cool (0) Movement Core (150) Ox2 Location -10/Materials Parts ------- > --- POWER (1) -------- (None) > --- PROPULSION (2) --- (None) > --- UTILITY (2) ------ Small Storage Unit > --- WEAPON (2) ------- Mining Claw > --- INVENTORY (8) ---- Light Ion Engine Wheel Wheel Sensor Array Signal Interpreter Improved Terrain Scanner Terrain Scan Processor Mining Claw Peak State ------------ > --- POWER ------------ Light Ion Engine > --- PROPULSION ------- Wheel Wheel > --- UTILITY ---------- Small Storage Unit Seismic Detector > --- WEAPON ----------- Assault Rifle Mining Claw > --- INVENTORY -------- Light Ion Engine Wheel Flight Unit Signal Interpreter Improved Terrain Scanner Terrain Scan Processor Mining Claw [Rating: 8] Favorites ----------- Power Light Ion Engine Engine Light Ion Engine Propulsion Wheel Wheel Wheel Utility Small Storage Unit Device Seismic Detector Storage Small Storage Unit Weapon Assault Rifle Energy Gun Medium Laser Ballistic Gun Assault Rifle Slashing Weapon Mining Claw Build | -11 -10 ------- Run | Yrd Mat Slots Evolved . | . . Power . | . . Propulsion . | . . Utility . | . . Weapon . | . . Parts Attached 14 | 7 7 Power 3 | 1 2 Engine 3 | 1 2 Core . | . . Reactor . | . . Propulsion 6 | 2 4 Treads . | . . Leg . | . . Wheel 6 | 2 4 Hover . | . . Flight . | . . Utility 2 | 2 . Device 1 | 1 . Storage 1 | 1 . Processor . | . . Hackware . | . . Protection . | . . Artifact . | . . Weapon 3 | 2 1 Energy Gun 1 | 1 . Energy Cannon . | . . Ballistic Gun 1 | 1 . Ballistic Cannon . | . . Launcher . | . . Special Weapon . | . . Impact Weapon . | . . Slashing Weapon 1 | . 1 Piercing Weapon . | . . Special Melee Weapon . | . . Unidentified Prototypes . | . . Parts Lost 8 | . 8 Power 2 | . 2 Propulsion 4 | . 4 Utility 1 | . 1 Weapon 1 | . 1 Highest Loss Streak 5 | . 5 To Critical Strikes . | . . Average Slot Usage (%) 96 | . 96 Engine 13 | . 13 Wheel 26 | . 26 Device 14 | . 14 Storage 14 | . 14 Ballistic Gun 12 | . 12 Slashing Weapon 13 | . 13 Naked Turns . | . . Heaviest Build 13 | 13 13 Greatest Support 26 | 26 20 Greatest Overweight (x) 3 | 3 3 Average Overweight (x) . | . . Largest Inventory Capacity 8 | 8 8 Average Capacity 7 | 7 8 Most Carried 8 | 4 8 Average Carried 5 | 1 6 Final Capacity 8 | 8 8 Final Carried 8 | 4 8 Class Distribution -------------------- 61% | Mutant 38% | Scavenger-Mutant Dominant Class ---------------- Mutant | -10/Materials Resources | -11 -10 ----------- Run | Yrd Mat Matter Collected 403 | 255 148 Remotely . | . . Salvage Created 442 | 109 333 Parts 34 | 7 27 Haulers Intercepted . | . . Recyclers Shooed 2 | 1 1 Parts Field Recycled . | . . Retrieved Matter . | . . Parts Self-Destructed . | . . Prevented . | . . Kills | -11 -10 ------- Run | Yrd Mat Combat Hostiles Destroyed 7 | . 7 Melee 7 | . 7 Classes Destroyed 7 | 2 5 Builder 1 | . 1 Tunneler 2 | 2 . Recycler 1 | 1 . Mechanic 1 | . 1 Watcher 1 | . 1 Swarmer 4 | . 4 Grunt 3 | . 3 Best Kill Streak 3 | 2 3 Combat Bots Only 3 | . 3 Max Kills in Single Turn 1 | 1 1 Gunslinging . | . . Exploded . | . . Melee 1 | . 1 Uniques/NPCs Destroyed . | . . Combat | -11 -10 -------- Run | Yrd Mat Hostile Shots Fired 100 | . 100 Missed 22 | . 22 Damage Taken 725 | . 725 Core 255 | . 255 Absorbed by Shields . | . . Core Remaining (%) 100 | 100 . Volleys Fired 26 | 12 14 Largest 2 | 2 1 Hottest 70 | 70 20 Shots Fired 38 | 24 14 Gun 38 | 24 14 Cannon . | . . Launcher . | . . Special . | . . Kinetic 26 | 12 14 Thermal 12 | 12 . Explosive . | . . Electromagnetic . | . . Robot Hit Streak 19 | 10 19 Robot Miss Streak 2 | 2 1 Penetration Max . | . . Secondary Targets . | . . Shots Hit Robots 55 | 16 39 Core Hits 20 | 4 16 Critical Kills . | . . Critical Parts Destroyed . | . . Critical Strikes . | . . Melee Attacks 40 | . 40 Impact . | . . Slashing 40 | . 40 Piercing . | . . Sneak Attacks 3 | . 3 Combat Hostiles . | . . Follow-up Attacks . | . . Damage Inflicted 1101 | 198 903 Guns 349 | 198 151 Cannons . | . . Explosions . | . . Melee 752 | . 752 Ramming . | . . Kinetic 261 | 110 151 Thermal 88 | 88 . Explosive . | . . Electromagnetic . | . . Impact . | . . Slashing 752 | . 752 Piercing . | . . Highest Corruption . | . . Average Corruption . | . . Corruption Purged . | . . Corruption Blocked . | . . Overload Shots . | . . Overflow Damage 60 | . 60 Projectiles . | . . Explosions . | . . Melee 60 | . 60 Knockbacks . | . . Impact . | . . Kinetic . | . . Secondary . | . . Self-Inflicted Damage . | . . Shots . | . . Rammed . | . . Targets Rammed . | . . Kicked . | . . Crushed . | . . Highest Temperature 72 | 72 . Average Temperature 28 | 28 . Received Heat Transfer 141 | . 141 Siege Activations . | . . Robots Corrupted . | . . Combat Hostiles . | . . Parts Fried . | . . Impact Corruptions . | . . Robots Melted . | . . Combat Hostiles . | . . Parts Melted . | . . Heat Transferred 259 | 259 . Parts Sabotaged . | . . Parts Stolen . | . . Parts Stripped . | . . Power Chain Reactions . | . . Alert | -11 -10 ------- Run | Yrd Mat Peak Influence 153 | 15 153 Initial 9 | . 9 Average 51 | 5 64 Maximum Alert Level . | . . Low Security (%) 100 | 100 100 Level 1 . | . . Level 2 . | . . Level 3 . | . . Level 4 . | . . Level 5 . | . . High Security . | . . Max Security . | . . Squads Dispatched . | . . Investigation . | . . Extermination . | . . Reinforcement . | . . Assault . | . . Garrison . | . . Intercept . | . . Searches Triggered . | . . Construction Impeded . | . . Haulers Reinforced . | . . Active Scanning Responses . | . . Cargo Convoy Interrupts . | . . Stealth | -11 -10 --------- Run | Yrd Mat Distress Signals 2 | . 2 Communications Jammed . | . . Distress Signals . | . . Times Spotted 16 | . 16 Peak Tracking Total 6 | . 6 Tactical Retreats 1 | . 1 Traps | -11 -10 ------- Run | Yrd Mat Traps Triggered . | . . Indirectly . | . . Trap Hack Attempts . | . . Triggered . | . . Disarmed . | . . Reprogrammed . | . . Reused . | . . Traps Extracted . | . . Installed . | . . Triggered . | . . Machines | -11 -10 ---------- Run | Yrd Mat Machines Disabled . | . . Max in Single Turn . | . . Machines Repaired . | . . Machines Dismantled . | . . Machines Sabotaged . | . . Overloaded Fab Kills . | . . Hacking | -11 -10 --------- Run | Yrd Mat Machines Accessed 2 | . 2 Terminals 2 | . 2 Fabricators . | . . Repair Stations . | . . Recycling Units . | . . Scanalyzers . | . . Garrison Access . | . . Total Hacks 5 | . 5 Successful 2 | . 2 Failed 3 | . 3 Catastrophic . | . . Database Lockouts . | . . Manual . | . . Terminals 5 | . 5 Fabricators . | . . Repair Stations . | . . Recycling Units . | . . Scanalyzers . | . . Garrison Access . | . . Terminal Hacks 2 | . 2 Terminal Index 1 | . 1 Patrol Status 1 | . 1 Fabricator Hacks . | . . Repair Station Hacks . | . . Recycling Unit Hacks . | . . Scanalyzer . | . . Garrison Access Hacks . | . . Unauthorized Hacks . | . . Terminals . | . . Fabricators . | . . Repair Stations . | . . Recycling Units . | . . Scanalyzers . | . . Garrison Access . | . . Data Cores Recovered . | . . Used . | . . Hacking Detections 2 | . 2 Full Trace Events 1 | . 1 Feedback Events . | . . Feedback Blocked . | . . Robot Schematics Acquired . | . . Robots Built . | . . Authchips . | . . Time . | . . Total Robot Build Rating . | . . Part Schematics Acquired . | . . Parts Built . | . . Authchips . | . . Time . | . . Total Part Build Rating . | . . Parts Repaired . | . . Time . | . . Parts Recycled . | . . Recycled Matter . | . . Retrieved Matter . | . . Retrieved Components . | . . Parts Scanalyzed . | . . Part Schematics Acquired . | . . Parts Damaged . | . . Bothacking | -11 -10 ------------ Run | Yrd Mat Used RIF Installer . | . . Robots Hacked . | . . Non-combat . | . . Combat . | . . Robot Hacks Applied . | . . Relay Couplers Released . | . . Fabnet Peak Effective % . | . . Robots Rewired . | . . Allies Hacked . | . . Hacks Repelled . | . . Allies | -11 -10 -------- Run | Yrd Mat Total Allies . | . . Largest Group . | . . Highest-Rated Group . | . . Highest-Rated Ally . | . . Total Orders . | . . Ally Attacks . | . . Total Damage . | . . Kills . | . . Allies Corrupted . | . . Allies Melted . | . . Intel | -11 -10 ------- Run | Yrd Mat Robot Analysis Total . | . . Derelict Logs Recovered . | . . Drone Launches . | . . Drone Recoveries . | . . Exploration | -11 -10 ------------- Run | Yrd Mat Turns Passed 597 | 127 470 Spaces Moved 383 | 81 302 Core 10 | 9 1 Treads . | . . Legs . | . . Wheels 373 | 72 301 Hover . | . . Flight . | . . Fastest Speed 50 | 50 80 Average Speed 82 | 92 80 Slowest Speed 200 | 200 200 Overloaded Moves . | . . Propulsion Burnouts . | . . Robots Hopped . | . . Cave-ins Triggered . | . . Exploration Rate (%) 22 | 5 39 Regions Visited 1 Branch Regions . Pre-discovered Areas . | . . Known Exits Taken . | . . Unknown Exits Taken 1 | 1 . Scrap Searched . | . . Spaces Dug . | . . Terrain Destroyed . | . . Melee . | . . Projectile . | . . AOE . | . . Terrain Rammed . | . . Walls Destroyed . | . . Machines Disabled . | . . Actions | -11 -10 --------- Run | Yrd Mat Total 543 | 105 438 Wait 62 | . 62 Move 382 | 80 302 Hop . | . . Pick Up 13 | 5 8 Fast Attach 9 | 7 2 Attach 3 | . 3 Detach . | . . Swap 2 | . 2 Drop 6 | 1 5 Fire 26 | 12 14 Melee 40 | . 40 Ram . | . . Kick . | . . Crush . | . . Escape Stasis . | . . Rewire . | . . Trap . | . . Miscellaneous . | . . Route ------- -11/Scrapyard -10/Materials (discovered 2 exits: [*Mat] / [*Min]) History --------- Turn | Location | Event 35 | -11/Scrapyard | Discovered new exit (range 15) 128 | -11/Scrapyard | Entered Materials 312 | -10/Materials | Build established: Mutant 490 | -10/Materials | Discovered new exit (range 16) 523 | -10/Materials | Discovered new exit (range 15) 578 | -10/Materials | Core integrity fell below 50% 593 | -10/Materials | Core integrity fell below 20% 598 | -10/Materials | Destroyed by S-10 Pest with Light Assault Rifle Last Messages --------------- 00457_ T-07 Excavator destroyed. 00461_ Dropped Flight Unit. 00462_ Dropped Wheel. 00463_ Acquired Wheel. 00472_ Acquired 10 matter. 00476_ K-01 Serf cleans the Electrolysis Chamber. 00490_ EXIT=FOUND 00558_ Assault Rifle destroyed. 00558_ R-06 Scavenger collects Lgt. Ion Engine. 00559_ S-10 Pest destroyed. 00561_ R-06 Scavenger collects Flight Unit. 00568_ Wheel destroyed. 00569_ R-06 Scavenger collects Lgt. Ion Engine. 00575_ Destroyed Flight Unit. 00576_ Wheel destroyed. 00585_ Lgt. Ion Engine destroyed. 00589_ G-34 Mercenary destroyed. 00595_ Seismic Detector destroyed. Map ----- +----------------------------------------------------+ | ??????????????????????????# ##??????????? | | ??????????################## ###########? | | ??????????# = #? | | ??????????# * ## | | ??????????# # | | ?????????#####+########+############ # | | ?????????# * # #????# # | | ?????????# """ # #????#%= # | | ?????????# [ """ # """ """ #????# ^" | | ?????????#// """ # """ """ #????#[ # | | ?????????#/ # """ """ #????# =*# | | ?????????######################????#=% # | | ??????????????????????????????#######+### | | ??????????????????????????????# | | ??????????????????????????????# | | ??????????????????????????????# ! = | | ??????????????######??????????# | | ??????????????# =|=############ | | ??????????????# % ## """ # | | ??????????????#!%! ## """ ##+######## | | ??????????????# ## """ ## #??????? | | ??????????????# | ## ##=#??????? | | ??????????????# ## ##*#??????? | | ??????????????#s ## "T" ##*#??????? | | ????###########=% ## """ ## #??????# | | ????# #%@% ## ## ##?? # | | ????# #+#s########+#### # # | | ????# """ # + # | | ????# """"" + % # # | | ????# """"" # """ #####??? | | ????# """"" ###+###+## """ #??????? | | ????# """ / # # """ ]#??????? | | ????# # """ [ # #" ?? | | ????###+####### """ # ?? | | ??????# #?????# """ / < ?? | | ??????# #?????# # ?? | | ??????# #?????# """ # ##### ?? | | ??????# ####### """ #######????####??? | | ??????# + """ #????????????????? | | ####### ####### #????????????????? | | # # #?????##########????????????????? | | # + #???????????????????????????????? | | # # #???????????????????????????????? | | # """ # ###?????????????????????????????? | | # """ # #?????????????????????????????? | | # """ + #?????????????????????????????? | | # # #?????????????????????????????? | | # """ # #?????????????????????????????? | | # """ # #?????????????????????????????? | | # """ # #?????????????????????????????? | +----------------------------------------------------+ Best States ------------- Heat Dissipation 25 Energy Generation 10 Energy Capacity 125 Matter Stores 300 Matter Capacity 300 Sight Range 16 Terrain Scan Density 10 Evasion (%) 44 Item Schematics ----------------- None Robot Schematics ------------------ None Fabricated ------------ Nothing Alien Tech Used ----------------- None Achievements -------------- None Challenges ------------ None Game ------ Seed ThrowingTransmissionStripper Manual? 0 Play Time 00:11:13 Cumulative 43.7 hours Start 2024.07.10 @ 20:08:33 End 2024.07.10 @ 20:18:27 Sessions 1 Manual Loads 0 Difficulty Rogue Special Mode None Game No. 26 Rogue 16 Adventurer 10 Explorer 0 Win Type - Total 0 Types 0/0/0/0/0/0/0/0/0 Lore% 10 Gallery% 30 Achievement% 24 Wizard Run 0 Options --------- Layout 1 ASCII 0 Keyboard 0 Movement Mouse Keybinds 0 Fullscreen 2 Font 24/Smallcaps Map View 50x35 Zoom Use 0% Tactical HUD 1 Map Filters NONE Filters NONE Steam 1 RUN: e3db4b85-fb27-4172-a196-8763cdd62082